fUST/lending_fUST_20250309
["ID","MTS","AMOUNT","RATE_DAILY","PERIOD"]
[355721092,1741503043640,-154.88944009,0.00055068,30]
[355721094,1741503043650,-1848.9,0.00055068,120]
[355721096,1741503043659,-500.0,0.00055068,120]
[355721098,1741503043668,-1000.0,0.00055068,7]
[355721100,1741503043678,-599.73377181,0.00055068,120]
[355721102,1741503043687,-500.0,0.00055068,120]
[355721104,1741503043698,-500.0,0.00055068,120]
[355721106,1741503043709,-500.0,0.00055068,120]
[355721108,1741503043718,-843.570749,0.00055068,120]
[355721110,1741503043728,-500.0,0.00055068,120]
[355721112,1741503043737,-430.97278476,0.00055068,120]
[355721114,1741503043747,-500.0,0.00055068,120]
[355721116,1741503043756,-843.570749,0.00055068,120]
[355721118,1741503043766,-500.0,0.00055068,120]
[355721120,1741503043775,-500.0,0.00055068,120]
[355721122,1741503043784,-500.0,0.00055068,120]
[355721124,1741503043794,-500.0,0.00055068,120]
[355721126,1741503043804,-500.0,0.00055068,120]
[355721128,1741503043814,-333.66667592,0.00055068,120]
[355721130,1741503043824,-500.0,0.00055068,120]
[355721132,1741503043833,-528.77343534,0.00055068,120]
[355721134,1741503043843,-500.0,0.00055068,120]
[355721136,1741503043852,-500.0,0.00055068,120]
[355721138,1741503043861,-500.0,0.00055068,120]
[355721140,1741503043871,-500.0,0.00055068,2]
[355721142,1741503043880,-500.0,0.00055068,120]
[355721144,1741503043889,-500.0,0.00055068,120]
[355721146,1741503043899,-151.0,0.00055068,120]
[355721148,1741503043908,-558.26139264,0.00055068,120]
[355721150,1741503043917,-500.0,0.00055068,120]
[355721152,1741503043926,-500.0,0.00055068,120]
[355721154,1741503043935,-500.0,0.00055068,120]
[355721156,1741503043945,-500.0,0.00055068,120]
[355721158,1741503043954,-151.0,0.00055068,120]
[355721160,1741503043964,-500.0,0.00055068,2]
[355721162,1741503043973,-500.0,0.00055068,120]
[355721164,1741503043982,-200.67557676,0.00055073,15]
[355721166,1741503043992,-300.0,0.00055073,15]
[355721168,1741503044002,-500.0,0.00055164,120]
[355721170,1741503044012,-5713.60807674,0.00055186,120]
[355721172,1741503044021,-2515.44683706,0.00055272,120]
[355721174,1741503044030,-250.0,0.00055321,3]
[355721176,1741503044040,-15232.79378099,0.00055342,71]
[355721178,1741503044049,-500.0,0.00055342,120]
[355721180,1741503044059,-200.31335123,0.00055342,30]
[355721182,1741503044068,-926.68,0.00055342,120]
[355721184,1741503044077,-1142.295583,0.00055342,120]
[355721186,1741503044087,-198.895441,0.00055342,30]
[355721188,1741503044096,-1142.295583,0.00055342,120]
[355721190,1741503044105,-198.895441,0.00055342,30]
[355721192,1741503044115,-500.0,0.00055342,120]
[355721194,1741503044124,-500.0,0.00055342,120]
[355721196,1741503044133,-1250.51,0.00055342,120]
[355721197,1741503044142,-500.0,0.00055342,120]
[355721198,1741503044153,-500.0,0.00055342,120]
[355721199,1741503044163,-500.0,0.00055342,120]
[355721200,1741503044171,-151.0,0.00055342,120]
[355721201,1741503044180,-500.0,0.00055342,120]
[355721202,1741503044189,-500.0,0.00055342,120]
[355721203,1741503044201,-500.0,0.00055342,120]
[355721204,1741503044211,-500.0,0.00055342,120]
[355721205,1741503044220,-500.0,0.00055342,120]
[355721206,1741503044229,-500.0,0.00055342,120]
[355721207,1741503044239,-221.808925,0.00055342,120]
[355721208,1741503044248,-221.808925,0.00055342,120]
[355721209,1741503044258,-159.40000001,0.00055342,120]
[355721210,1741503044267,-151.0,0.00055342,120]
[355721211,1741503044276,-523.84450798,0.00055342,120]
[355721212,1741503044286,-151.0,0.00055342,120]
[355721213,1741503044295,-151.0,0.00055342,120]
[355721214,1741503044304,-4732.56,0.00055342,120]
[355721215,1741503044313,-151.0,0.00055342,120]
[355721216,1741503044322,-500.0,0.00055342,120]
[355721217,1741503044331,-500.0,0.00055342,120]
[355721218,1741503044407,-500.0,0.00055342,120]
[355721219,1741503044424,-320.7252,0.00055342,120]
[355721220,1741503044433,-688.85,0.00055342,120]
[355721221,1741503044443,-191.31874,0.00055342,120]
[355721222,1741503044452,-500.0,0.00055342,120]
[355721223,1741503044462,-183.58434733,0.00055342,120]
[355721224,1741503044471,-500.0,0.00055342,120]
[355721225,1741503044480,-1519.45,0.00055342,120]
[355721226,1741503044490,-500.0,0.00055342,120]
[355721227,1741503044499,-500.0,0.00055342,120]
[355721228,1741503044513,-151.0,0.00055342,120]
[355721229,1741503044523,-440.542632,0.00055342,120]
[355721230,1741503044532,-500.0,0.00055342,120]
[355721231,1741503044541,-440.542632,0.00055342,120]
[355721232,1741503044551,-500.0,0.00055342,120]
[355721233,1741503044560,-500.0,0.00055342,120]
[355721234,1741503044570,-500.0,0.00055342,120]
[355721235,1741503044581,-500.0,0.00055342,120]
[355721236,1741503044591,-500.0,0.00055342,120]
[355721237,1741503044600,-500.0,0.00055342,120]
[355721238,1741503044611,-500.0,0.00055342,120]
[355721239,1741503044621,-926.11,0.00055342,120]
[355721240,1741503044631,-500.0,0.00055342,120]
[355721241,1741503044641,-1500.0,0.00055342,120]
[355721242,1741503044650,-500.0,0.00055342,120]
[355721243,1741503044660,-5153.57,0.00055342,120]
[355721244,1741503044670,-500.0,0.00055342,120]
[355721245,1741503044680,-500.0,0.00055342,120]
[355721246,1741503044689,-500.0,0.00055342,120]
[355721247,1741503044699,-8990.63,0.00055342,7]
[355721248,1741503044709,-500.0,0.00055342,120]
[355721249,1741503044718,-500.0,0.00055342,120]
[355721250,1741503044728,-768.73,0.00055342,120]
[355721251,1741503044738,-929.85,0.00055342,120]
[355721252,1741503044747,-1848.9,0.00055342,120]
[355721253,1741503044757,-500.0,0.00055342,120]
[355721254,1741503044766,-1000.0,0.00055342,7]
[355721255,1741503044776,-415.91157637,0.00055342,120]
[355721256,1741503044786,-500.0,0.00055342,120]
[355721257,1741503044795,-500.0,0.00055342,120]
[355721258,1741503044805,-500.0,0.00055342,120]
[355721259,1741503044814,-500.0,0.00055342,120]
[355721260,1741503044823,-500.0,0.00055342,120]
[355721261,1741503044832,-261.625288,0.00055342,120]
[355721262,1741503044842,-152.93593879,0.00055342,120]
[355721263,1741503044852,-515.38664919,0.00055342,120]
[355721264,1741503044861,-318.76404987,0.00055342,120]
[355721265,1741503044871,-500.0,0.00055342,120]
[355721266,1741503044881,-510.66308662,0.00055342,120]
[355721267,1741503044891,-558.53230866,0.00055342,120]
[355721268,1741503044900,-500.0,0.00055342,120]
[355721269,1741503044909,-500.0,0.00055342,120]
[355721270,1741503044919,-500.0,0.00055342,2]
[355721271,1741503044928,-500.0,0.00055342,120]
[355721272,1741503044938,-500.0,0.00055342,120]
[355721273,1741503044948,-500.0,0.00055342,120]
[355721274,1741503044958,-500.0,0.00055342,120]
[355721275,1741503044968,-500.0,0.00055342,120]
[355721276,1741503044978,-500.0,0.00055342,120]
[355721277,1741503044987,-500.0,0.00055342,2]
[355721278,1741503044996,-500.0,0.00055342,120]
[355721279,1741503045005,-200.0,0.00055352,120]
[355721280,1741503045015,-500.0,0.00055438,120]
[355721281,1741503045025,-5000.0,0.000555,120]
[355721282,1741503045035,-10000.0,0.000555,120]
[355721283,1741503045044,-1000.0,0.000556,120]
[355721284,1741503045054,-501.72894245,0.00055616,120]
[355721285,1741503045063,-926.68,0.00055616,120]
[355721286,1741503045073,-525.92059157,0.00055616,120]
[355721287,1741503045083,-500.0,0.00055616,120]
[355721288,1741503045092,-1250.51,0.00055616,120]
[355721289,1741503045101,-598.16331308,0.00055616,120]
[355721290,1741503045111,-510.38148173,0.00055616,120]
[355721291,1741503045120,-502.56735239,0.00055616,120]
[355721292,1741503045130,-500.0,0.00055616,120]
[355721293,1741503045140,-500.0,0.00055616,120]
[355721294,1741503045150,-564.83076171,0.00055616,120]
[355721295,1741503045159,-502.15973361,0.00055616,120]
[355721296,1741503045168,-502.86521533,0.00055616,120]
[355721297,1741503045178,-4732.56,0.00055616,120]
[355721298,1741503045187,-500.0,0.00055616,120]
[355721299,1741503045197,-500.0,0.00055616,120]
[355721300,1741503045206,-500.0,0.00055616,120]
[355721301,1741503045216,-688.85,0.00055616,120]
[355721302,1741503045225,-500.0,0.00055616,120]
[355721304,1741503045234,-169.114177,0.00055616,120]
[355721305,1741503045243,-169.114177,0.00055616,120]
[355721306,1741503045252,-500.0,0.00055616,120]
[355721307,1741503045261,-1519.45,0.00055616,120]
[355721308,1741503045270,-569.91231845,0.00055616,120]
[355721310,1741503045279,-500.0,0.00055616,120]
[355721311,1741503045288,-151.0,0.00055616,120]
[355721312,1741503045298,-518.11984305,0.00055616,120]
[355721313,1741503045307,-500.0,0.00055616,120]
[355721314,1741503045316,-500.0,0.00055616,120]
[355721315,1741503045325,-502.48231637,0.00055616,120]
[355721316,1741503045334,-208.19423316,0.00055616,120]
[355721317,1741503045344,-500.0,0.00055616,120]
[355721318,1741503045353,-563.23367181,0.00055616,120]
[355721319,1741503045362,-500.0,0.00055616,120]
[355721320,1741503045372,-926.11,0.00055616,120]
[355721321,1741503045381,-371.306532,0.00055616,120]
[355721322,1741503045390,-371.306532,0.00055616,120]
[355721323,1741503045399,-500.0,0.00055616,120]
[355721324,1741503045409,-1500.0,0.00055616,120]
[355721325,1741503045419,-151.0,0.00055616,120]
[355721326,1741503045428,-500.0,0.00055616,120]
[355721327,1741503045438,-5153.57,0.00055616,120]
[355721328,1741503045447,-226.88850345,0.00055616,120]
[355721329,1741503045457,-500.0,0.00055616,120]
[355721330,1741503045466,-500.0,0.00055616,120]
[355721331,1741503045475,-8990.63,0.00055616,7]
[355721332,1741503045484,-500.0,0.00055616,120]
[355721333,1741503045494,-209.94105343,0.00055616,120]
[355721334,1741503045507,-768.73,0.00055616,120]
[355721335,1741503045516,-929.85,0.00055616,120]
[355721336,1741503045526,-1848.9,0.00055616,120]
[355721337,1741503045535,-500.0,0.00055616,120]
[355721338,1741503045545,-1000.0,0.00055616,7]
[355721339,1741503045555,-500.0,0.00055616,120]
[355721340,1741503045564,-500.0,0.00055616,120]
[355721341,1741503045573,-843.570749,0.00055616,120]
[355721342,1741503045583,-390.40585759,0.00055616,120]
[355721343,1741503045593,-603.75761875,0.00055616,120]
[355721344,1741503045603,-843.570749,0.00055616,120]
[355721345,1741503045612,-514.54259897,0.00055616,120]
[355721346,1741503045622,-548.45818682,0.00055616,120]
[355721347,1741503045631,-500.0,0.00055616,120]
[355721348,1741503045640,-500.0,0.00055616,120]
[355721349,1741503045650,-500.0,0.00055616,2]
[355721350,1741503045659,-473.17060065,0.00055616,120]
[355721351,1741503045669,-500.0,0.00055616,120]
[355721352,1741503045678,-152.572419,0.00055616,120]
[355721353,1741503045688,-593.72420022,0.00055616,120]
[355721354,1741503045698,-500.0,0.00055616,120]
[355721355,1741503045707,-500.0,0.00055616,120]
[355721356,1741503045717,-500.0,0.00055616,120]
[355721357,1741503045726,-151.0,0.00055616,120]
[355721358,1741503045736,-500.0,0.00055616,2]
[355721359,1741503045745,-500.0,0.00055616,120]
[355721360,1741503045755,-600.0,0.00055621,15]
[355721361,1741503045765,-150.0,0.00055673,15]
[355721362,1741503045774,-500.0,0.00055712,120]
[355721363,1741503045784,-203.35418894,0.00055868,3]
[355721364,1741503045793,-926.68,0.0005589,120]
[355721365,1741503045803,-500.0,0.0005589,120]
[355721366,1741503045812,-1250.51,0.0005589,120]
[355721367,1741503045823,-548.09991605,0.0005589,120]
[355721368,1741503045833,-500.0,0.0005589,120]
[355721369,1741503045842,-4732.56,0.0005589,120]
[355721370,1741503045852,-573.36367124,0.0005589,120]
[355721371,1741503045861,-500.0,0.0005589,120]
[355721372,1741503045871,-500.0,0.0005589,120]
[355721373,1741503045880,-688.85,0.0005589,120]
[355721374,1741503045890,-500.0,0.0005589,120]
[355721375,1741503045899,-500.0,0.0005589,120]
[355721376,1741503045909,-1519.45,0.0005589,120]
[355721377,1741503045919,-500.0,0.0005589,120]
[355721378,1741503045928,-500.0,0.0005589,120]
[355721379,1741503045938,-500.0,0.0005589,120]
[355721380,1741503045947,-500.0,0.0005589,120]
[355721381,1741503045956,-926.11,0.0005589,120]
[355721382,1741503045966,-500.0,0.0005589,120]
[355721383,1741503045975,-1500.0,0.0005589,120]
[355721384,1741503045984,-500.0,0.0005589,120]
[355721385,1741503045994,-5153.57,0.0005589,120]
[355721386,1741503046003,-513.70118828,0.0005589,120]
[355721387,1741503046012,-500.0,0.0005589,120]
[355721388,1741503046022,-8990.63,0.0005589,7]
[355721389,1741503046031,-500.0,0.0005589,120]
[355721391,1741503046040,-768.73,0.0005589,120]
[355721393,1741503046049,-929.85,0.0005589,120]
[355721395,1741503046059,-1848.9,0.0005589,120]
[355721396,1741503046068,-162.7313793,0.0005589,120]
[355721397,1741503046077,-312.77580213,0.0005589,7]
[355721398,1741503046087,-395.06693322,0.0005589,120]
[355721399,1741503046096,-500.0,0.0005589,120]
[355721400,1741503046105,-500.0,0.0005589,120]
[355721401,1741503046115,-500.0,0.0005589,120]
[355721402,1741503046124,-500.0,0.0005589,2]
[355721403,1741503046134,-500.0,0.0005589,120]
[355721404,1741503046143,-500.0,0.0005589,120]
[355721405,1741503046152,-500.0,0.0005589,120]
[355721406,1741503046161,-500.0,0.0005589,120]
[355721407,1741503046171,-500.0,0.0005589,2]
[355721408,1741503046180,-500.0,0.0005589,120]
[355721409,1741503046190,-500.0,0.00055986,120]
[355721410,1741503046199,-213.0,0.00056,120]
[355721411,1741503046208,-1000.0,0.00056,120]
[355721412,1741503046218,-150.0,0.00056,120]
[355721413,1741503046227,-211.0,0.00056,120]
[355721414,1741503046236,-152.0,0.00056,120]
[355721415,1741503046245,-150.0,0.0005605,14]
[355721416,1741503046255,-151.29671503,0.0005605,14]
[355721417,1741503046264,-926.68,0.00056164,120]
[355721418,1741503046273,-500.0,0.00056164,120]
[355721419,1741503046283,-1250.51,0.00056164,120]
[355721420,1741503046292,-500.0,0.00056164,120]
[355721421,1741503046301,-4732.56,0.00056164,120]
[355721422,1741503046310,-500.0,0.00056164,120]
[355721423,1741503046320,-500.0,0.00056164,120]
[355721424,1741503046329,-688.85,0.00056164,120]
[355721425,1741503046411,-500.0,0.00056164,120]
[355721426,1741503046421,-500.0,0.00056164,120]
[355721427,1741503046431,-1519.45,0.00056164,120]
[355721428,1741503046441,-500.0,0.00056164,120]
[355721429,1741503046450,-500.0,0.00056164,120]
[355721430,1741503046459,-500.0,0.00056164,120]
[355721431,1741503046468,-500.0,0.00056164,120]
[355721432,1741503046477,-926.11,0.00056164,120]
[355721433,1741503046487,-500.0,0.00056164,120]
[355721434,1741503046496,-1500.0,0.00056164,120]
[355721436,1741503046509,-151.22794805,0.00056164,120]
[355721438,1741503046518,-5153.57,0.00056164,120]
[355721439,1741503046528,-500.0,0.00056164,120]
[355721441,1741503046537,-8990.63,0.00056164,7]
[355721443,1741503046546,-500.0,0.00056164,120]
[355721445,1741503046557,-768.73,0.00056164,120]
[355721447,1741503046566,-929.85,0.00056164,120]
[355721449,1741503046575,-1848.9,0.00056164,120]
[355721451,1741503046586,-500.0,0.00056164,120]
[355721453,1741503046596,-500.0,0.00056164,120]
[355721455,1741503046605,-500.0,0.00056164,120]
[355721457,1741503046615,-500.0,0.00056164,2]
[355721459,1741503046624,-500.0,0.00056164,120]
[355721461,1741503046633,-500.0,0.00056164,120]
[355721463,1741503046643,-500.0,0.00056164,120]
[355721465,1741503046652,-500.0,0.00056164,120]
[355721467,1741503046661,-500.0,0.00056164,2]
[355721469,1741503046671,-500.0,0.00056164,120]
[355721471,1741503046679,-724.78405836,0.00056168,15]
[355721473,1741503046689,-228.39177918,0.00056221,15]
[355721475,1741503046699,-500.0,0.0005626,120]
[355721477,1741503046708,-205.07,0.00056294,30]
[355721479,1741503046718,-154.31,0.000563,57]
[355721481,1741503046727,-154.31,0.000563,57]
[355721482,1741503046736,-154.31,0.000563,57]
[355721484,1741503046745,-154.31,0.000563,57]
[355721486,1741503046754,-154.31,0.000563,57]
[355721488,1741503046764,-154.31,0.000563,57]
[355721489,1741503046774,-926.68,0.00056438,120]
[355721490,1741503046783,-1142.295583,0.00056438,120]
[355721491,1741503046793,-198.895441,0.00056438,30]
[355721492,1741503046802,-1142.295583,0.00056438,120]
[355721493,1741503046811,-198.895441,0.00056438,30]
[355721494,1741503046821,-500.0,0.00056438,120]
[355721495,1741503046832,-1250.51,0.00056438,120]
[355721496,1741503046842,-500.0,0.00056438,120]
[355721497,1741503046851,-221.808925,0.00056438,120]
[355721498,1741503046860,-221.808925,0.00056438,120]
[355721499,1741503046870,-151.0,0.00056438,120]
[355721500,1741503046879,-151.0,0.00056438,120]
[355721501,1741503046888,-151.0,0.00056438,120]
[355721502,1741503046898,-4732.56,0.00056438,120]
[355721503,1741503046907,-151.0,0.00056438,120]
[355721504,1741503046916,-500.0,0.00056438,120]
[355721505,1741503046926,-532.06185506,0.00056438,120]
[355721506,1741503046935,-320.7252,0.00056438,120]
[355721507,1741503046944,-688.85,0.00056438,120]
[355721508,1741503046954,-500.0,0.00056438,120]
[355721509,1741503046964,-500.0,0.00056438,120]
[355721510,1741503046974,-1519.45,0.00056438,120]
[355721511,1741503046986,-151.0,0.00056438,120]
[355721512,1741503046995,-440.542632,0.00056438,120]
[355721513,1741503047005,-440.542632,0.00056438,120]
[355721514,1741503047015,-500.0,0.00056438,120]
[355721515,1741503047025,-531.66039807,0.00056438,120]
[355721516,1741503047036,-500.0,0.00056438,120]
[355721517,1741503047047,-500.0,0.00056438,120]
[355721518,1741503047057,-926.11,0.00056438,120]
[355721519,1741503047069,-500.0,0.00056438,120]
[355721520,1741503047079,-1500.0,0.00056438,120]
[355721521,1741503047091,-5153.57,0.00056438,120]
[355721522,1741503047100,-500.0,0.00056438,120]
[355721523,1741503047110,-8990.63,0.00056438,7]
[355721524,1741503047120,-272.06306244,0.00056438,120]
[355721525,1741503047130,-768.73,0.00056438,120]
[355721526,1741503047140,-929.85,0.00056438,120]
[355721527,1741503047151,-1848.9,0.00056438,120]
[355721528,1741503047163,-276.80211043,0.00056438,120]
[355721529,1741503047173,-500.0,0.00056438,120]
[355721530,1741503047184,-151.73211396,0.00056438,120]
[355721531,1741503047193,-500.0,0.00056438,2]
[355721532,1741503047206,-485.35636984,0.00056438,120]
[355721533,1741503047216,-164.98541117,0.00056438,120]
[355721534,1741503047227,-518.48875408,0.00056438,120]
[355721535,1741503047238,-500.0,0.00056438,120]
[355721536,1741503047250,-500.0,0.00056438,2]
[355721537,1741503047259,-200.0,0.0005645,120]
[355721538,1741503047268,-1000.0,0.000565,120]
[355721539,1741503047277,-1977.93,0.000565,30]
[355721540,1741503047286,-530.81,0.000565,30]
[355721541,1741503047297,-151.0,0.000565,120]
[355721542,1741503047306,-10000.0,0.000565,120]
[355721543,1741503047316,-10000.0,0.000565,120]
[355721544,1741503047327,-200.0,0.00056501,120]
[355721545,1741503047338,-500.0,0.00056534,120]
[355721546,1741503047347,-1023.92418483,0.00056589,14]
[355721547,1741503047356,-171.0,0.000566,120]
[355721548,1741503047365,-926.68,0.00056712,120]
[355721549,1741503047375,-500.0,0.00056712,120]
[355721550,1741503047384,-1250.51,0.00056712,120]
[355721551,1741503047393,-500.0,0.00056712,120]
[355721552,1741503047402,-4732.56,0.00056712,120]
[355721553,1741503047411,-500.0,0.00056712,120]
[355721554,1741503047420,-688.85,0.00056712,120]
[355721555,1741503047430,-500.0,0.00056712,120]
[355721556,1741503047441,-169.114177,0.00056712,120]
[355721557,1741503047450,-169.114177,0.00056712,120]
[355721558,1741503047460,-157.98951824,0.00056712,120]
[355721559,1741503047469,-1519.45,0.00056712,120]
[355721560,1741503047479,-151.0,0.00056712,120]
[355721561,1741503047490,-248.44321556,0.00056712,120]
[355721562,1741503047500,-401.68711607,0.00056712,120]
[355721563,1741503047512,-500.0,0.00056712,120]
[355721564,1741503047524,-926.11,0.00056712,120]
[355721565,1741503047533,-371.306532,0.00056712,120]
[355721566,1741503047542,-371.306532,0.00056712,120]
[355721567,1741503047553,-500.0,0.00056712,120]
[355721568,1741503047563,-1500.0,0.00056712,120]
[355721569,1741503047572,-151.0,0.00056712,120]
[355721570,1741503047584,-5153.57,0.00056712,120]
[355721571,1741503047595,-500.0,0.00056712,120]
[355721572,1741503047604,-8990.63,0.00056712,7]
[355721573,1741503047613,-768.73,0.00056712,120]
[355721574,1741503047622,-929.85,0.00056712,120]
[355721575,1741503047631,-1848.9,0.00056712,120]
[355721576,1741503047641,-500.0,0.00056712,120]
[355721577,1741503047650,-500.0,0.00056712,120]
[355721578,1741503047659,-169.15641974,0.00056712,2]
[355721579,1741503047669,-1000.0,0.000568,120]
[355721580,1741503047679,-328.84025274,0.000569,120]
[355721581,1741503047688,-926.68,0.00056986,120]
[355721582,1741503047697,-500.0,0.00056986,120]
[355721583,1741503047706,-1250.51,0.00056986,120]
[355721584,1741503047716,-500.0,0.00056986,120]
[355721585,1741503047725,-4732.56,0.00056986,120]
[355721586,1741503047734,-500.0,0.00056986,120]
[355721587,1741503047743,-688.85,0.00056986,120]
[355721588,1741503047752,-500.0,0.00056986,120]
[355721589,1741503047762,-1519.45,0.00056986,120]
[355721590,1741503047771,-500.0,0.00056986,120]
[355721591,1741503047780,-926.11,0.00056986,120]
[355721592,1741503047789,-500.68702469,0.00056986,120]
[355721593,1741503047798,-1500.0,0.00056986,120]
[355721594,1741503047808,-5153.57,0.00056986,120]
[355721595,1741503047817,-500.0,0.00056986,120]
[355721596,1741503047826,-8990.63,0.00056986,7]
[355721597,1741503047836,-768.73,0.00056986,120]
[355721598,1741503047845,-929.85,0.00056986,120]
[355721599,1741503047855,-1848.9,0.00056986,120]
[355721600,1741503047865,-843.570749,0.00056986,120]
[355721601,1741503047875,-843.570749,0.00056986,120]
[355721602,1741503047884,-500.0,0.00056986,120]
[355721603,1741503047894,-151.0,0.00056986,120]
[355721604,1741503047904,-500.0,0.00056986,120]
[355721605,1741503047913,-1877.06839946,0.00057,120]
[355721606,1741503047923,-12251.0,0.00057,120]
[355721607,1741503047932,-613.41420808,0.00057,120]
[355721608,1741503047942,-1000.0,0.00057,120]
[355721609,1741503047951,-500.0,0.00057082,120]
[355721610,1741503047960,-926.68,0.0005726,120]
[355721611,1741503047970,-500.0,0.0005726,120]
[355721612,1741503047979,-1250.51,0.0005726,120]
[355721613,1741503047989,-500.0,0.0005726,120]
[355721614,1741503047998,-4732.56,0.0005726,120]
[355721615,1741503048007,-500.0,0.0005726,120]
[355721616,1741503048015,-688.85,0.0005726,120]
[355721617,1741503048025,-500.0,0.0005726,120]
[355721618,1741503048034,-1519.45,0.0005726,120]
[355721619,1741503048043,-500.0,0.0005726,120]
[355721620,1741503048053,-926.11,0.0005726,120]
[355721621,1741503048062,-1500.0,0.0005726,120]
[355721622,1741503048071,-5153.57,0.0005726,120]
[355721623,1741503048080,-500.0,0.0005726,120]
[355721624,1741503048090,-8990.63,0.0005726,7]
[355721625,1741503048099,-768.73,0.0005726,120]
[355721626,1741503048109,-929.85,0.0005726,120]
[355721627,1741503048118,-1848.9,0.0005726,120]
[355721628,1741503048127,-500.0,0.0005726,120]
[355721629,1741503048136,-500.0,0.0005726,120]
[355721630,1741503048145,-1000.0,0.000573,120]
[355721631,1741503048154,-500.55636734,0.00057373,15]
[355721632,1741503048163,-5031.93533348,0.00057373,120]
[355721633,1741503048172,-50036.1063,0.000574,30]
[355721634,1741503048182,-1142.295583,0.000574,120]
[355721635,1741503048191,-198.895441,0.000574,30]
[355721636,1741503048200,-1142.295583,0.000574,120]
[355721637,1741503048282,-198.895441,0.000574,30]
[355721638,1741503048292,-221.808925,0.000574,120]
[355721639,1741503048302,-221.808925,0.000574,120]
[355721640,1741503048311,-151.0,0.000574,120]
[355721641,1741503048320,-175.660028,0.000574,120]
[355721642,1741503048330,-283.326254,0.000574,120]
[355721643,1741503048339,-151.0,0.000574,120]
[355721644,1741503048348,-320.7252,0.000574,120]
[355721645,1741503048357,-151.0,0.000574,120]
[355721646,1741503048367,-440.542632,0.000574,120]
[355721647,1741503048376,-440.542632,0.000574,120]
[355721648,1741503048385,-200.0,0.00057423,120]
[355721649,1741503048394,-200.0,0.00057448,120]
[355721650,1741503048403,-10000.0,0.000575,120]
[355721651,1741503048413,-926.68,0.00057534,120]
[355721652,1741503048422,-500.0,0.00057534,120]
[355721653,1741503048431,-1250.51,0.00057534,120]
[355721654,1741503048441,-500.0,0.00057534,120]
[355721655,1741503048450,-4732.56,0.00057534,120]
[355721656,1741503048459,-500.0,0.00057534,120]
[355721657,1741503048469,-688.85,0.00057534,120]
[355721658,1741503048478,-500.0,0.00057534,120]
[355721659,1741503048487,-1519.45,0.00057534,120]
[355721660,1741503048497,-500.0,0.00057534,120]
[355721661,1741503048511,-200.93257739,0.00057534,120]
[355721662,1741503048521,-500.0,0.00057534,120]
[355721663,1741503048530,-926.11,0.00057534,120]
[355721664,1741503048540,-1500.0,0.00057534,120]
[355721665,1741503048550,-5153.57,0.00057534,120]
[355721666,1741503048560,-500.0,0.00057534,120]
[355721667,1741503048569,-8990.63,0.00057534,7]
[355721668,1741503048578,-768.73,0.00057534,120]
[355721669,1741503048590,-929.85,0.00057534,120]
[355721670,1741503048600,-1848.9,0.00057534,120]
[355721671,1741503048609,-500.0,0.00057534,120]
[355721672,1741503048619,-500.0,0.00057534,120]
[355721673,1741503048629,-200.0,0.00057535,120]
[355721674,1741503048639,-500.0,0.0005763,120]